bitfinex-derivatives/quotes_SOLF0:USTF0_20250905
["timestamp","ask_amount","ask_price","bid_price","bid_amount"]
[1757075791527,7.9,207.23,207.07,67.601]
[1757075791729,7.9,207.37,207.02,67.617]
[1757075791927,15.14359711,207.34,207.02,224.04]
[1757075792129,15.14359711,207.24,206.86,67.6683]
[1757075792325,534.56,207.23,206.86,67.6703]
[1757075792530,7.9,207.06,206.87,67.6669]
[1757075792725,7.9,207.06,206.85,67.6738]
[1757075792930,7.9,207.06,206.91,67.654]
[1757075793125,7.9,207.15,206.99,67.6277]
[1757075793332,7.9,207.24,207.07,67.6006]
[1757075793635,7.9,207.24,207.05,0.11]
[1757075793830,7.9,207.19,206.96,67.7456]
[1757075794136,7.9,207.19,207.01,67.619]
[1757075794330,7.9,207.19,207.0,67.6254]
[1757075794533,7.9,207.2,206.92,67.6505]
[1757075794744,9.03323857,207.21,206.92,223.9]
[1757075795036,7.9,207.14,206.94,67.644]
[1757075795233,7.9,207.14,206.98,67.6304]
[1757075795532,7.9,207.25,207.08,67.5979]
[1757075795734,7.9,207.25,207.1,67.5921]
[1757075795937,7.9,207.33,207.12,67.5843]
[1757075796232,7.9,207.33,207.21,67.5555]
[1757075796433,7.9,207.41,207.19,67.5613]
[1757075796631,7.9,207.49,207.28,67.5322]
[1757075797136,7.9,207.49,207.3,67.5261]
[1757075797331,7.9,207.49,207.3,67.5264]
[1757075797531,67.4833,207.44,207.23,290.8582]
[1757075797837,67.4891,207.42,207.23,0.11]
[1757075798043,7.9,207.43,207.32,67.5196]
[1757075798245,67.4545,207.53,207.32,67.5187]
[1757075798545,7.9,207.52,207.37,67.5029]
[1757075798741,7.9,207.52,207.35,67.5101]
[1757075798931,75.3579,207.52,207.3,67.5266]
[1757075799133,71.8204,207.44,207.23,71.8908]
[1757075799331,67.4891,207.42,207.23,71.8908]
[1757075799538,7.9,207.39,207.19,67.5616]
[1757075799735,67.4758,207.46,207.25,67.5412]
[1757075799939,67.4798,207.45,207.25,67.5412]
[1757075800142,75.3729,207.47,207.23,0.11]
[1757075800340,7.9,207.47,207.33,67.5163]
[1757075800532,67.45,207.54,207.3,0.11]
[1757075800733,7.9,207.55,207.37,67.5027]
[1757075800937,7.9,207.55,207.33,67.5162]
[1757075801141,67.4629,207.5,207.3,222.03]
[1757075801341,7.9,207.49,207.3,0.11]
[1757075801645,67.487,207.43,207.22,0.11]
[1757075801837,7.9,207.49,207.25,289.2432]
[1757075802233,7.9,207.49,207.29,67.53]
[1757075802443,7.9,207.49,207.33,67.5171]
[1757075802633,7.9,207.49,207.35,67.5105]
[1757075802839,75.337,207.58,207.31,80.89813857]
[1757075803137,7.9,207.58,207.37,67.5031]
[1757075803338,7.9,207.58,207.37,221.08]
[1757075803540,7.9,207.58,207.39,67.4981]
[1757075803841,7.9,207.58,207.4,220.64]
[1757075804031,7.9,207.58,207.36,67.5058]
[1757075804233,67.4444,207.56,207.35,0.11]
[1757075804437,67.4632,207.5,207.35,0.11]
[1757075804739,67.4632,207.5,207.34,310.66]
[1757075804740,67.4805,207.45,207.34,310.66]
[1757075804934,67.4798,207.45,207.34,310.66]
[1757075805139,67.4718,207.48,207.34,310.66]
[1757075805443,7.9,207.59,207.35,0.11]
[1757075805641,7.9,207.59,207.38,67.5015]
[1757075805940,75.3349,207.59,207.39,219.68]
[1757075806144,67.4406,207.57,207.35,9.14323857]
[1757075806346,67.4664,207.49,207.35,0.11]
[1757075806544,67.4664,207.49,207.35,219.39]
[1757075806747,7.9,207.59,207.17,67.5701]
[1757075806748,7.9,207.4,207.17,67.5701]
[1757075806949,67.5022,207.38,207.22,0.11]
[1757075807146,67.4894,207.42,207.22,0.11]
[1757075807348,67.502,207.38,207.22,0.11]
[1757075807743,67.5086,207.36,207.22,0.11]
[1757075807943,67.5151,207.34,207.22,0.11]
[1757075808140,67.5154,207.34,207.22,0.11]
[1757075808448,4.3396,207.38,207.22,0.11]
[1757075808648,7.9,207.41,207.22,0.11]
[1757075808849,7.86,207.49,207.22,0.11]
[1757075809051,7.86,207.49,207.25,67.5434]
[1757075809258,7.86,207.49,207.26,67.6799]
[1757075809551,71.8138,207.46,207.27,218.82]
[1757075809849,7.86,207.49,207.27,218.82]
[1757075810150,7.86,207.49,207.22,67.5537]
[1757075810151,67.5158,207.34,207.17,218.8]
[1757075810546,71.8662,207.31,207.17,0.14]
[1757075810753,4.3409,207.31,207.18,218.18]
[1757075810951,67.5347,207.28,207.17,0.14]
[1757075811247,67.5347,207.28,207.17,218.04]
[1757075811553,67.5347,207.28,207.14,180.31603818]
[1757075811850,67.5248,207.31,207.15,217.74]
[1757075812046,9.03323857,207.9,207.16,0.14]
[1757075812347,7.86,207.43,207.16,0.14]
[1757075812846,7.86,207.43,207.18,67.7068]
[1757075813046,7.86,207.43,207.18,0.14]
[1757075813350,7.86,207.43,207.2,0.14]
[1757075814251,7.86,207.43,207.21,216.56]
[1757075814553,7.86,207.43,207.2,0.14]
[1757075814854,202.3876,207.51,207.26,0.14]
[1757075815147,7.86,207.52,207.27,216.24]
[1757075815350,7.86,207.52,207.28,67.5346]
[1757075815554,7.86,207.52,207.3,0.14]
[1757075815745,7.86,207.52,207.31,4.3408]
[1757075816552,7.86,207.52,207.3,0.14]
[1757075816756,7.86,207.52,207.31,215.14]
[1757075816958,4.32504,207.53,207.35,0.14]
[1757075817649,67.4796,207.45,207.35,0.14]
[1757075817847,67.4727,207.47,207.36,214.6]
[1757075818049,67.4708,207.48,207.37,214.6]
[1757075818251,67.4823,207.44,207.35,0.14]
[1757075818454,67.4866,207.43,207.36,214.3]
[1757075818757,67.4762,207.46,207.35,214.12]
[1757075818956,67.4863,207.43,207.35,214.12]
[1757075819257,67.4708,207.48,207.35,214.26]
[1757075819458,67.4767,207.46,207.35,214.26]
[1757075819653,67.4798,207.45,207.36,213.64]
[1757075819858,4.3377,207.47,207.36,213.64]
[1757075820263,12.18504,207.53,207.36,213.64]
[1757075820264,4.32504,207.53,207.4,67.4954]
[1757075820466,4.18504,207.53,207.48,67.4669]
[1757075820765,1.20904,207.53,207.49,213.22]
[1757075820964,1.20904,207.53,207.47,67.4716]
[1757075821162,67.3868,207.74,207.55,67.4466]
[1757075821362,67.3535,207.84,207.65,67.4136]
[1757075821562,75.1929,207.91,207.7,67.3976]
[1757075821761,7.86,207.91,207.71,213.58]
[1757075822064,67.3149,207.96,207.75,67.3813]
[1757075822263,71.6432,207.96,207.77,4.3311]
[1757075822466,4.3274,207.96,207.77,80.73663857]
[1757075822768,67.3103,207.97,207.77,80.73663857]
[1757075822769,7.86,207.99,207.82,71.689]
[1757075822964,67.3114,207.97,207.77,67.375]
[1757075823272,67.3242,207.93,207.78,213.76]
[1757075823464,5.0,208.0,207.79,222.79323857]
[1757075823768,72.3015,208.0,207.8,213.58]
[1757075823969,67.314,207.96,207.79,9.03323857]
[1757075824167,67.321,207.94,207.73,9.03323857]
[1757075824371,7.86,207.95,207.74,213.4]
[1757075824567,67.3262,207.92,207.75,213.4]
[1757075824768,67.324,207.93,207.75,213.4]
[1757075824972,67.3349,207.9,207.76,213.24]
[1757075825173,67.3496,207.85,207.76,213.08]
[1757075825369,67.3625,207.81,207.68,310.36]
[1757075825566,67.3772,207.77,207.68,310.36]
[1757075825772,209.8725,207.89,207.68,310.36]
[1757075825773,67.3478,207.86,207.69,212.86]
[1757075826068,7.86,207.91,207.69,221.89323857]
[1757075826373,67.3468,207.86,207.75,0.03335649]
[1757075826573,67.3729,207.78,207.75,0.03335649]
[1757075826767,0.03607599,207.82,207.69,212.78]
[1757075826970,71.6794,207.85,207.69,212.78]
[1757075827267,67.3209,207.94,207.75,9.03323857]
[1757075827468,0.03188516,207.79,207.76,212.56]
[1757075827872,67.3534,207.84,207.77,212.34]
[1757075828076,0.03543136,207.8,207.77,212.36]
[1757075828272,67.3727,207.78,207.75,0.03126463]
[1757075828478,0.03543136,207.8,207.75,0.03126463]
[1757075829579,67.40043136,207.8,207.75,0.03126463]
[1757075829773,0.03543136,207.8,207.75,0.03126463]
[1757075829969,0.03543136,207.8,207.76,211.44]
[1757075830876,0.03543136,207.8,207.77,210.92]
[1757075831279,67.3168,207.95,207.78,0.48]
[1757075831480,71.6444,207.95,207.78,9.03323857]
[1757075831680,72.3016,208.0,207.82,9.03323857]
[1757075831981,67.3298,207.91,207.83,210.58]
[1757075832177,67.3434,207.87,207.83,210.48]
[1757075832475,67.3493,207.85,207.8,210.38]
[1757075832780,67.3434,207.87,207.77,210.18]
[1757075832981,67.3592,207.82,207.8,0.0317143]
[1757075833180,67.3493,207.85,207.8,0.0317143]
[1757075833380,4.3302,207.82,207.77,210.18]
[1757075833678,71.6891,207.82,207.8,0.03177613]
[1757075833876,67.346,207.86,207.8,0.03177613]
[1757075834077,67.3531,207.84,207.77,209.78]
[1757075834277,67.3636,207.81,207.66,9.03323857]
[1757075834473,71.7064,207.77,207.6,9.03323857]
[1757075834786,67.382,207.75,207.69,209.24]
[1757075835081,134.7072,207.84,207.7,0.03570746]
[1757075835385,67.3364,207.89,207.7,0.03570746]
[1757075835575,71.6653,207.87,207.69,209.24]
[1757075835779,7.86,207.91,207.75,0.03600573]
[1757075835974,67.3205,207.92,207.75,0.03600573]
[1757075836178,4.3279,207.91,207.74,4.3312]
[1757075836378,67.3202,207.92,207.74,4.3312]
[1757075836582,67.3096,207.95,207.81,0.03312823]
[1757075836783,67.3261,207.9,207.81,0.03312823]
[1757075836983,67.3241,207.91,207.82,208.36]
[1757075837182,67.3096,207.95,207.83,0.03102885]
[1757075837586,67.3143,207.94,207.83,0.03102885]
[1757075837778,67.2991,207.99,207.83,0.03102885]
[1757075838082,67.3174,207.93,207.84,207.82]
[1757075838285,71.6514,207.91,207.85,207.78]
[1757075838578,7.62,207.9,207.71,67.387]
[1757075838784,7.62,207.9,207.76,207.64]
[1757075838785,7.65121885,207.9,207.76,207.64]
[1757075838979,7.62,207.9,207.76,207.64]
[1757075839192,71.6517,207.91,207.76,207.64]
[1757075839382,67.3366,207.87,207.67,333.44323857]
[1757075839579,67.3366,207.87,207.68,207.34]
[1757075839879,67.3328,207.88,207.68,274.7375]
[1757075840084,7.62,207.9,207.71,0.04]
[1757075840284,67.3241,207.91,207.71,0.04]
[1757075840584,67.3236,207.91,207.72,206.9]
[1757075840884,67.317,207.93,207.73,206.72]
[1757075841079,67.3072,207.96,207.73,206.72]
[1757075841279,67.3198,207.92,207.71,0.04]
[1757075841478,71.6682,207.86,207.71,0.04]
[1757075841683,67.309,207.96,207.73,9.03323857]
[1757075841880,67.309,207.96,207.75,0.04]
[1757075842079,4.3276,207.93,207.75,0.04]
[1757075842276,7.62,207.97,207.8,0.04]
[1757075842482,7.62,207.97,207.81,206.08]
[1757075842991,67.3104,207.95,207.8,0.04]
[1757075843181,67.3131,207.94,207.82,205.78]
[1757075843382,67.3131,207.94,207.8,0.04]
[1757075843578,67.3131,207.94,207.81,205.36]
[1757075843883,67.3589,207.8,207.71,205.2]
[1757075844084,4.3305,207.79,207.71,205.2]
[1757075844291,74.9691,207.83,207.71,205.2]
[1757075844487,67.3333,207.88,207.71,205.2]
[1757075844681,7.62,207.9,207.71,205.2]
[1757075844994,0.03564736,207.79,207.71,272.586]
[1757075845290,7.62,207.9,207.71,272.586]
[1757075845589,7.62,207.9,207.73,0.03217587]
[1757075845789,7.62,207.9,207.71,205.2]
[1757075846088,7.62,207.9,207.7,9.05323857]
[1757075846388,11.9482,207.9,207.78,0.03302588]
[1757075846592,67.3094,207.96,207.79,204.08]
[1757075846885,67.3197,207.92,207.77,0.02]
[1757075847091,74.9397,207.92,207.78,203.96]
[1757075847285,67.3197,207.92,207.85,0.03260573]
[1757075847483,7.62,207.87,207.85,0.03260573]
[1757075847684,67.3331,207.88,207.8,203.4]
[1757075847993,4.3288,207.87,207.8,203.4]
[1757075848191,67.3331,207.88,207.8,203.4]
[1757075848388,7.62,207.89,207.8,203.4]
[1757075848593,4.3286,207.88,207.8,203.4]
[1757075849193,67.3494,207.83,207.69,0.02]
[1757075849486,67.3529,207.82,207.7,202.72]
[1757075849694,4.3302,207.8,207.71,202.72]
[1757075849888,67.3566,207.81,207.67,309.98]
[1757075850092,4.3305,207.79,207.68,202.72]
[1757075850594,74.9862,207.78,207.57,0.05]
[1757075850894,67.3961,207.69,207.59,389.57749905]
[1757075851193,4.3323,207.7,207.59,389.57749905]
[1757075851393,67.3865,207.72,207.59,389.57749905]
[1757075851595,67.3988,207.68,207.6,202.72]
[1757075851784,67.3883,207.71,207.6,202.72]
[1757075851987,67.3929,207.7,207.6,202.72]
[1757075852188,4.332,207.72,207.6,202.72]
[1757075852389,7.62,207.74,207.6,202.72]
[1757075852689,67.3903,207.71,207.6,202.72]
[1757075852891,4.3326,207.69,207.6,202.72]
[1757075853198,67.3639,207.79,207.6,202.72]
[1757075853385,4.3307,207.78,207.62,4.3339]
[1757075853591,4.3307,207.78,207.61,67.4195]
[1757075853793,4.3307,207.78,207.6,202.77]
[1757075854089,4.3305,207.79,207.63,4.3337]
[1757075854289,74.9775,207.81,207.6,202.77]
[1757075854290,67.3692,207.77,207.64,202.76]
[1757075854591,74.9775,207.81,207.64,202.76]
[1757075854592,4.3313,207.75,207.64,202.76]
[1757075854794,74.9775,207.81,207.64,202.76]
[1757075855189,67.3594,207.8,207.64,202.76]
[1757075855485,7.62,207.81,207.64,202.76]
[1757075855788,7.62,207.81,207.65,0.05]
[1757075855990,7.62,207.81,207.66,202.76]
[1757075856185,4.3309,207.77,207.65,0.05]
[1757075856393,67.3593,207.8,207.66,202.74]
[1757075856587,67.3593,207.8,207.67,202.74]
[1757075856787,7.62,207.81,207.59,191.24189905]
[1757075856984,7.62,207.75,207.6,202.74]
[1757075857393,7.62,207.75,207.61,202.74]
[1757075857588,7.62,207.75,207.65,0.03191575]
[1757075858291,0.03375762,207.72,207.65,0.03191575]
[1757075859391,0.03375762,207.72,207.66,202.72]
[1757075860194,0.03375762,207.72,207.67,202.72]
[1757075860386,0.03375762,207.72,207.65,0.03191575]
[1757075860592,0.03375762,207.72,207.65,202.73191575]
[1757075862695,0.03375762,207.72,207.65,202.78191575]
[1757075863289,0.03375762,207.72,207.66,202.68]
[1757075863790,0.03375762,207.72,207.65,0.08191575]
[1757075863999,0.03375762,207.72,207.66,202.66]
[1757075864188,0.03375762,207.72,207.65,0.03191575]
[1757075864491,7.62,207.71,207.53,309.88]
[1757075864695,7.62,207.71,207.54,202.64]
[1757075865196,7.62,207.81,207.54,202.64]
[1757075865793,7.62,207.69,207.54,202.64]
[1757075865993,7.62,207.69,207.53,309.88]
[1757075866197,7.62,207.69,207.54,202.62]
[1757075866397,7.62,207.62,207.53,309.88]
[1757075867098,0.03226616,207.6,207.53,309.88]
[1757075867799,0.03226616,207.6,207.54,202.6]
[1757075868993,67.4278,207.59,207.53,309.88]
[1757075869495,67.4278,207.59,207.38,15.20007974]
[1757075869496,4.3367,207.49,207.47,202.58]
[1757075869898,67.4443,207.54,207.47,202.58]
[1757075870093,4.3365,207.5,207.47,202.58]
[1757075870300,0.03327701,207.5,207.47,202.58]
[1757075870997,0.03327701,207.5,207.48,202.56]
[1757075871590,0.03327701,207.5,207.48,210.37]
[1757075871791,0.03327701,207.5,207.48,202.56]
[1757075872688,67.4127,207.64,207.49,7.81]
[1757075873092,67.4175,207.62,207.49,7.81]
[1757075873299,67.4141,207.63,207.49,7.81]
[1757075873495,67.4141,207.63,207.5,202.52]
[1757075873702,67.4172,207.62,207.49,7.81]
[1757075873895,8.01,207.65,207.5,202.5]
[1757075874403,67.4271,207.59,207.51,202.48]
[1757075874802,4.335,207.57,207.49,7.81]
[1757075874997,67.4272,207.59,207.5,202.48]
[1757075875199,67.4146,207.63,207.5,202.48]
[1757075875803,4.335,207.57,207.5,202.48]
[1757075876004,67.4146,207.63,207.5,202.48]
[1757075876306,4.3348,207.58,207.5,202.48]
[1757075877297,8.01,207.65,207.5,202.48]
[1757075877496,67.4052,207.66,207.5,202.48]
[1757075877894,4.3339,207.62,207.5,202.48]
[1757075878095,67.4106,207.64,207.5,202.48]
[1757075878299,67.4052,207.66,207.5,202.48]
[1757075878499,67.4108,207.64,207.5,202.48]
[1757075878695,8.01,207.66,207.5,202.48]
[1757075878900,4.3333,207.66,207.52,4.336]
[1757075879100,67.3926,207.7,207.52,4.336]
[1757075879301,67.4047,207.66,207.53,202.32]
[1757075879496,67.4001,207.68,207.54,202.32]
[1757075879805,67.3972,207.68,207.54,202.32]
[1757075880002,67.4005,207.67,207.54,202.32]
[1757075880305,67.3956,207.69,207.55,202.28]
[1757075880502,8.01,207.72,207.56,7.81]
[1757075880803,67.4009,207.67,207.57,202.26]
[1757075881007,67.3912,207.7,207.57,202.26]
[1757075881306,67.3951,207.69,207.57,202.26]
[1757075881700,8.01,207.72,207.57,202.26]
[1757075882208,8.01,207.8,207.61,7.81]
[1757075882408,8.01,207.8,207.66,7.81]
[1757075882611,8.01,207.86,207.68,7.81]
[1757075882800,67.3455,207.84,207.68,7.81]
[1757075883001,67.3562,207.81,207.69,202.14]
[1757075883200,67.352,207.82,207.7,202.14]
[1757075883201,67.3656,207.78,207.7,202.14]
[1757075883405,67.3617,207.79,207.68,7.81]
[1757075883607,67.3653,207.78,207.68,7.81]
[1757075883810,67.3719,207.76,207.68,7.81]
[1757075884004,67.3717,207.76,207.59,5.54124908]
[1757075884203,67.3847,207.72,207.6,7.81]
[1757075884611,67.3847,207.72,207.61,202.06]
[1757075884808,8.01,207.76,207.6,7.81]
[1757075885012,8.01,207.76,207.64,0.03159803]
[1757075885911,8.01,207.76,207.65,201.98]
[1757075886111,8.01,207.76,207.64,0.03159803]
[1757075886313,8.01,207.76,207.65,201.96]
[1757075887314,8.01,207.76,207.6,7.81]
[1757075887515,8.01,207.75,207.61,201.88]
[1757075887813,8.01,207.75,207.62,201.88]
[1757075888413,8.01,207.75,207.6,7.81]
[1757075888813,8.01,207.75,207.61,201.82]
[1757075889114,8.01,207.75,207.6,7.81]
[1757075889316,8.01,207.75,207.61,201.82]
[1757075889506,8.01,207.75,207.6,7.81]
[1757075889711,8.01,207.75,207.62,201.78]
[1757075890314,8.01,207.75,207.62,201.76]
[1757075890705,8.01,207.75,207.55,310.22]
[1757075890909,8.01,207.75,207.56,201.7]
[1757075891106,8.01,207.77,207.55,310.22]
[1757075891309,8.01,207.72,207.47,7.81]
[1757075891809,67.4427,207.54,207.47,7.81]
[1757075892018,67.456,207.5,207.41,201.64]
[1757075892214,4.337,207.48,207.42,201.64]
[1757075892414,67.4495,207.52,207.42,201.64]
[1757075892615,67.4531,207.51,207.42,201.64]
[1757075893114,4.3367,207.49,207.42,201.64]
[1757075893319,67.4495,207.52,207.42,201.64]
[1757075893618,67.4449,207.54,207.43,7.81]
[1757075893811,67.4391,207.56,207.43,7.81]
[1757075894010,67.4594,207.49,207.4,201.56]
[1757075894213,4.3361,207.52,207.41,7.81]
[1757075894919,67.4584,207.5,207.42,201.54]
[1757075895213,67.4536,207.51,207.33,310.14]
[1757075895214,67.4697,207.46,207.34,7.81]
[1757075895420,67.4819,207.42,207.35,201.48]
[1757075895714,67.4788,207.43,207.36,201.48]
[1757075895919,4.339,207.38,207.36,201.48]
[1757075896115,67.4925,207.39,207.34,7.81]
[1757075896319,67.4952,207.38,207.29,0.83799892]
[1757075896515,67.5056,207.35,207.3,201.42]
[1757075896720,67.5112,207.33,207.29,201.42]
[1757075896922,67.5189,207.31,207.24,310.26]
[1757075897121,67.5045,207.35,207.24,310.26]
[1757075897320,67.5045,207.35,207.24,318.07]
[1757075897517,67.4925,207.39,207.24,318.90960625]
[1757075898620,8.01,207.41,207.24,318.07]
[1757075898921,202.3609,207.51,207.14,180.31603818]
[1757075898922,7.43,207.36,207.17,201.36]
[1757075899323,5.54124908,207.37,207.17,201.36]
[1757075899720,7.43,207.31,207.08,310.32]
[1757075899924,7.43,207.31,207.1,7.99]
[1757075900622,7.43,207.31,207.18,0.03042286]
[1757075900825,7.43,207.31,207.18,201.29042286]
[1757075901018,7.43,207.31,207.18,201.26]
[1757075901223,7.43,207.31,207.17,201.26]
[1757075903422,7.43,207.51,207.23,73.08404908]
[1757075903617,7.43,207.51,207.25,7.99]
[1757075903919,5.54124908,207.49,207.25,7.99]
[1757075904120,7.43,207.43,207.36,0.03578266]
[1757075904321,5.54124908,207.44,207.24,310.5]
[1757075904322,12.97124908,207.39,207.24,310.5]
[1757075904523,80.46244908,207.39,207.24,310.5]
[1757075904826,67.5069,207.35,207.2,201.1]
[1757075905027,67.5144,207.32,207.2,201.1]
[1757075905326,67.5066,207.34,207.2,201.1]
[1757075905624,0.03548452,207.28,207.2,201.1]
[1757075905922,0.03548452,207.28,207.19,7.99]
[1757075906220,0.03548452,207.28,207.2,201.04]
[1757075906833,0.03548452,207.28,207.19,7.99]
[1757075907234,0.03548452,207.28,207.2,200.96]
[1757075909029,0.03548452,207.28,207.21,7.99]
[1757075909536,7.43,207.43,207.21,7.99]
[1757075909833,67.4982,207.37,207.24,7.99]
[1757075910033,67.5048,207.35,207.24,7.99]
[1757075910235,67.5075,207.34,207.25,200.78]
[1757075910542,4.3402,207.32,207.24,7.99]
[1757075910738,67.52,207.3,207.25,200.76]
[1757075910935,67.5282,207.28,207.15,7.99]
[1757075911132,67.5429,207.23,207.15,7.99]
[1757075911337,67.55,207.21,207.15,200.7]
[1757075911539,67.5429,207.23,207.15,200.7]
[1757075911540,74.9643,207.26,207.15,200.7]
[1757075911736,4.3417,207.25,207.15,200.7]
[1757075911937,4.3417,207.25,207.15,208.69]
[1757075912135,67.5306,207.27,207.14,200.66]
[1757075912340,4.3419,207.24,207.14,200.66]
[1757075912536,67.5208,207.3,207.15,7.99]
[1757075912742,67.5306,207.27,207.15,7.99]
[1757075912937,67.5197,207.31,207.15,7.99]
[1757075913142,67.5284,207.28,207.15,7.99]
[1757075913336,67.5283,207.28,207.15,7.99]
[1757075913536,67.5383,207.25,207.16,200.6]
[1757075913736,67.5275,207.28,207.16,200.6]
[1757075913936,4.3417,207.25,207.16,200.6]
[1757075914139,67.5208,207.3,207.16,200.6]
[1757075914338,67.5197,207.31,207.16,200.6]
[1757075914642,67.5141,207.32,207.16,204.9434]
[1757075914838,67.5302,207.27,207.17,200.5]
[1757075915036,67.54,207.24,207.15,7.99]
[1757075915240,67.5367,207.25,207.16,200.46]
[1757075915440,74.9543,207.29,207.16,200.46]
[1757075915640,4.3419,207.24,207.16,200.46]
[1757075916145,3.36314147,207.32,207.16,200.46]
[1757075916340,7.43,207.31,207.16,200.46]
[1757075916541,7.43,207.31,207.17,200.38]
[1757075916741,7.43,207.31,207.18,200.36]
[1757075917437,3.36314147,207.28,207.18,200.36]
[1757075918440,3.36314147,207.28,207.09,7.99]
[1757075918739,3.36314147,207.28,207.16,200.3]
[1757075919447,7.43,207.31,207.17,200.18]
[1757075919942,7.43,207.4,207.18,7.99]
[1757075920146,7.43,207.35,207.18,7.99]
[1757075920549,3.36314147,207.32,207.18,7.99]
[1757075920753,7.43,207.31,207.18,200.08]
[1757075921747,7.43,207.38,207.18,200.08]
[1757075922042,7.43,207.34,207.07,67.5936]
[1757075922243,7.43,207.3,207.1,199.98]
[1757075922440,7.43,207.26,207.09,8.8300927]
[1757075922643,7.43,207.26,207.11,199.96]
[1757075922841,67.5434,207.23,207.11,199.96]
[1757075923040,4.3424,207.22,207.11,199.96]
[1757075923447,67.5376,207.25,207.11,199.96]
[1757075923650,67.5475,207.22,207.11,199.96]
[1757075923848,74.9651,207.26,207.11,199.96]
[1757075924042,4.3421,207.23,207.11,199.96]
[1757075924349,67.5344,207.26,207.12,7.99]
[1757075924550,67.54,207.24,207.12,7.99]
[1757075924748,67.5561,207.2,207.13,199.8]
[1757075925048,67.5571,207.19,207.12,7.99]
[1757075925349,4.3437,207.16,207.13,199.78]
[1757075926045,67.5626,207.18,207.12,207.71]
[1757075926243,67.5568,207.19,207.12,207.71]
[1757075926442,67.5655,207.17,207.08,310.6]
[1757075926644,67.5679,207.16,207.09,199.64]
[1757075926843,67.5763,207.13,207.08,310.6]
[1757075927044,4.345,207.09,207.08,310.6]
[1757075927243,7.43,207.17,207.08,310.6]
[1757075927442,67.5803,207.12,207.08,310.6]
[1757075927644,4.345,207.09,207.08,310.6]
[1757075927854,67.5881,207.1,207.03,199.56]
[1757075928245,67.5803,207.12,207.03,199.56]
[1757075928647,7.43,207.17,207.03,199.56]
[1757075929247,7.43,207.17,207.03,8.0]
[1757075929553,7.43,207.17,207.04,199.46]
[1757075931248,7.43,207.17,207.02,199.3]
[1757075933357,7.43,207.17,207.03,199.16]
[1757075933551,0.03308719,207.12,207.03,199.16]
[1757075933759,0.03308719,207.12,207.08,0.03352237]
[1757075933948,7.39,207.11,207.08,0.03352237]
[1757075934354,7.39,207.09,206.9,8.0]
[1757075934550,7.39,207.09,206.91,199.04]
[1757075934756,7.39,207.09,206.92,8.0]
[1757075935352,7.39,207.09,206.93,198.98]
[1757075935756,0.03480254,207.03,206.93,198.98]